{"text_format":"3","workbook":"xlsx","n_sheets":3,"sheets":["Soupis Pozůstalosti","Pozůstalostní majetek","Závazky z pozůstalosti"],"not_rendered":{"defined_names":1},"read":"whole","date_system":"1900"}

{"sheet":"Soupis Pozůstalosti","index":0,"n_rows":45,"n_cols":35,"rows_kept":45,"merged":[[0,1,0,30],[0,31,0,39],[1,1,5,39],[6,1,6,6],[6,7,6,39],[7,1,7,6],[7,7,7,39],[9,1,9,6],[9,7,9,39],[10,1,10,6],[10,7,10,39],[11,1,11,6],[11,7,11,20],[11,21,11,26],[11,27,11,30],[11,31,11,33],[11,34,11,39],[12,1,12,6],[12,7,12,20],[12,21,12,26],[13,1,13,6],[13,7,13,20],[13,21,13,26],[14,1,14,6],[14,7,14,20],[14,21,14,26],[15,1,15,6],[17,1,17,39],[18,1,18,6],[18,7,18,12],[18,13,18,15],[18,16,18,18],[18,19,18,26],[18,27,18,31],[18,32,18,39],[19,1,19,6],[19,7,19,12],[19,13,19,15],[19,16,19,18],[19,19,19,26],[19,27,19,31],[19,32,19,39],[20,1,20,6],[20,7,20,12],[20,13,20,15],[20,16,20,18],[20,19,20,26],[20,27,20,31],[20,32,20,39],[21,1,21,6],[21,7,21,12],[21,13,21,15],[21,16,21,18],[21,19,21,26],[21,27,21,31],[21,32,21,39],[22,1,22,6],[22,7,22,12],[22,13,22,15],[22,16,22,18],[22,19,22,26],[22,27,22,31],[22,32,22,39],[23,1,23,6],[23,7,23,12],[23,13,23,15],[23,16,23,18],[23,19,23,26],[23,27,23,31],[23,32,23,39],[25,1,25,39],[26,1,26,6],[26,7,26,12],[26,13,26,18],[26,19,26,26],[26,27,26,31],[26,32,26,39],[27,1,27,6],[27,7,27,12],[27,13,27,18],[27,19,27,26],[27,27,27,31],[27,32,27,39],[28,1,28,6],[28,7,28,12],[28,13,28,18],[28,19,28,26],[28,27,28,31],[28,32,28,39],[29,1,29,6],[29,7,29,12],[29,13,29,18],[29,19,29,26],[29,27,29,31],[29,32,29,39],[30,1,30,6],[30,7,30,12],[30,13,30,18],[30,19,30,26],[30,27,30,31],[30,32,30,39],[31,1,31,6],[31,7,31,12],[31,13,31,18],[31,19,31,26],[31,27,31,31],[31,32,31,39],[33,1,33,12],[33,14,33,39],[34,1,34,12],[34,14,34,21],[34,22,34,25],[34,26,34,33],[34,34,34,39],[35,2,35,12],[35,14,35,21],[35,22,35,25],[35,26,35,33],[35,34,35,39],[36,2,36,12],[36,14,36,21],[36,22,36,25],[36,26,36,33],[36,34,36,39],[37,2,37,12],[37,14,37,21],[37,22,37,25],[37,26,37,33],[37,34,37,39],[38,2,38,12],[38,14,38,21],[38,22,38,25],[38,26,38,33],[38,34,38,39],[39,2,39,12],[39,14,39,21],[39,22,39,25],[39,26,39,33],[39,34,39,39],[40,2,40,12],[40,14,40,21],[40,22,40,25],[40,26,40,33],[40,34,40,39],[41,2,41,12],[41,14,41,21],[41,22,41,25],[41,26,41,33],[41,34,41,39],[42,2,42,12],[42,14,42,21],[42,22,42,25],[42,26,42,33],[42,34,42,38],[43,2,43,12],[43,14,43,21],[43,22,43,25],[43,26,43,33],[43,34,43,39],[44,2,44,12],[44,14,44,21],[44,22,44,25],[44,26,44,33],[44,34,44,39]]}
[]
[null,"Soupis pozůstalosti"]
[]
[]
[]
[]
[null,"Jména vykonavatelů",{"$nulls":5},"Matěj Skořepa"]
[null,"Kontaktní údaje",{"$nulls":5},"Hlavní 4567, 76543, Ostrava"]
[]
[null,"Jméno zesnulé osoby",{"$nulls":5},"Pavel Bureš"]
[null,"Ulice a číslo domu",{"$nulls":5},"Modrá 6789"]
[null,"Město",{"$nulls":5},"Ostrava",{"$nulls":13},"Země/oblast",{"$nulls":5},"Česká republika",{"$nulls":3},"PSČ",null,null,98052]
[null,"Rodné číslo",{"$nulls":5},"xxxxxx/xxxx",{"$nulls":13},"Povolání",{"$nulls":5},"Zubař"]
[null,"Datum narození",{"$nulls":5},"1965-12-08",{"$nulls":13},"Místo narození",{"$nulls":5},"Česká republika"]
[null,"Datum úmrtí",{"$nulls":5},{"$f":"TODAY()-3","v":"2022-05-10"},{"$nulls":13},"Místo úmrtí",{"$nulls":5},"Česká republika"]
[null,"Další informace"]
[]
[null,"  Partner, děti a další závislé osoby"]
[null,"Jméno",{"$nulls":5},"Vztah",{"$nulls":5},"Závislá osoba",null,null,"Věk",null,null,"Adresa",{"$nulls":7},"Telefonní číslo",{"$nulls":4},"E-mail"]
[null,"Marie Marková",{"$nulls":5},"Osobní zástupce",{"$nulls":5},"Ne",null,null,30]
[null,"Jaroslava Burešová",{"$nulls":5},"Manžel(ka)",{"$nulls":5},"Ano",null,null,35]
[null,"Pavel Bureš",{"$nulls":5},"Dítě",{"$nulls":5},"Ano",null,null,12]
[]
[]
[]
[null,"Profesionální poradci"]
[null,"Typ poradce",{"$nulls":5},"Kontaktní osoba",{"$nulls":5},"Společnost",{"$nulls":5},"Adresa",{"$nulls":7},"Telefonní číslo",{"$nulls":4},"E-mail"]
[null,"Účetní"]
[null,"Advokát/notář"]
[null,"Jiné"]
[]
[]
[]
[null,"  Kontrolní seznam pozůstalosti",{"$nulls":12},"  Soupisy pozůstalosti"]
[null,"    Položky kontrolního seznamu",{"$nulls":12},"Majetek v pozůstalosti",{"$nulls":7},"Hodnota (Kč)",{"$nulls":3},"Závazky z pozůstalosti",{"$nulls":7},"Hodnota (Kč)"]
[null,"✔","Závěť nebo jiné dokumenty",{"$nulls":11},{"$f":"'Pozůstalostní majetek'!B12","v":"Bankovní účty"},{"$nulls":7},{"$f":"'Pozůstalostní majetek'!G20","v":{"v":0,"d":"0.00 Kč"}},{"$nulls":3},{"$f":"'Závazky z pozůstalosti'!B11","v":"Hypotéky"},{"$nulls":7},{"$f":"'Závazky z pozůstalosti'!G18","v":{"v":0,"d":"0.00 Kč"}}]
[null,"✔","Smlouva o pronájmu bezpečnostní schránky a klíče",{"$nulls":11},{"$f":"'Pozůstalostní majetek'!B22","v":"Osobní investice"},{"$nulls":7},{"$f":"'Pozůstalostní majetek'!G30","v":{"v":0,"d":"0.00 Kč"}},{"$nulls":3},{"$f":"'Závazky z pozůstalosti'!B21","v":"Osobní půjčky a úvěrové linky"},{"$nulls":7},{"$f":"'Závazky z pozůstalosti'!G28","v":{"v":0,"d":"0.00 Kč"}}]
[null,"✖","Hesla k počítačům a online účtům",{"$nulls":11},{"$f":"'Pozůstalostní majetek'!B32","v":"Obchodní zájmy"},{"$nulls":7},{"$f":"'Pozůstalostní majetek'!G40","v":{"v":0,"d":"0.00 Kč"}},{"$nulls":3},{"$f":"'Závazky z pozůstalosti'!B31","v":"Obchodní zájmy"},{"$nulls":7},{"$f":"'Závazky z pozůstalosti'!G38","v":{"v":0,"d":"0.00 Kč"}}]
[null,"✔","Smlouvy svěřeneckých fondů",{"$nulls":11},{"$f":"'Pozůstalostní majetek'!B42","v":"Nemovitosti"},{"$nulls":7},{"$f":"'Pozůstalostní majetek'!G50","v":{"v":0,"d":"0.00 Kč"}},{"$nulls":3},{"$f":"'Závazky z pozůstalosti'!B41","v":"Kreditní karty"},{"$nulls":7},{"$f":"'Závazky z pozůstalosti'!G48","v":{"v":0,"d":"0.00 Kč"}}]
[null,"✔","Životní pojištění, zdravotní/úrazové pojištění a jiná pojištění",{"$nulls":11},{"$f":"'Pozůstalostní majetek'!B52","v":"Penzijní plány"},{"$nulls":7},{"$f":"'Pozůstalostní majetek'!G60","v":{"v":0,"d":"0.00 Kč"}},{"$nulls":3},{"$f":"'Závazky z pozůstalosti'!B51","v":"Jiné závazky"},{"$nulls":7},{"$f":"'Závazky z pozůstalosti'!G58","v":{"v":0,"d":"0.00 Kč"}}]
[null,"✔","Finanční výkazy",{"$nulls":11},{"$f":"'Pozůstalostní majetek'!B62","v":"Pojištění"},{"$nulls":7},{"$f":"'Pozůstalostní majetek'!G70","v":{"v":0,"d":"0.00 Kč"}}]
[null,"✔","Daňová přiznání za poslední tři roky",{"$nulls":11},{"$f":"'Pozůstalostní majetek'!B72","v":"Soukromé půjčky a hypotéky"},{"$nulls":7},{"$f":"'Pozůstalostní majetek'!G80","v":{"v":0,"d":"0.00 Kč"}}]
[null,"✔","Rodné a úmrtní listy",{"$nulls":11},{"$f":"'Pozůstalostní majetek'!B82","v":"Zájmy na jiném majetku a svěřenectvích"},{"$nulls":7},{"$f":"'Pozůstalostní majetek'!G90","v":{"v":0,"d":"0.00 Kč"}}]
[null,"✖","Smlouvy, hypotéky a půjčky",{"$nulls":11},{"$f":"'Pozůstalostní majetek'!B92","v":"Osobní věci a další majetek"},{"$nulls":7},{"$f":"'Pozůstalostní majetek'!G100","v":{"v":0,"d":"0.00 Kč"}}]
[null,"☐","Nezaplacené faktury a směnky",{"$nulls":11},"Celkové množství majetku",{"$nulls":7},{"$f":"'Pozůstalostní majetek'!G10","v":{"v":0,"d":"0.00 Kč"}},{"$nulls":3},"Celkové závazky",{"$nulls":7},{"$f":"SUM(AI36:AN44)","v":{"v":0,"d":"0.00 Kč"}}]

{"sheet":"Pozůstalostní majetek","index":1,"n_rows":100,"n_cols":8,"rows_kept":100,"merged":[[0,1,0,7],[1,1,5,7],[6,1,7,7],[11,1,11,7],[12,1,12,7],[21,1,21,7],[22,1,22,7],[31,1,31,7],[32,1,32,7],[41,1,41,7],[42,1,42,7],[51,1,51,7],[52,1,52,7],[61,1,61,7],[62,1,62,7],[71,1,71,7],[72,1,72,7],[81,1,81,7],[82,1,82,7],[91,1,91,7],[92,1,92,7]]}
[]
[null,"Pozůstalostní majetek"]
[]
[]
[]
[]
[null,"Tento list slouží k vytvoření inventáře majetku v pozůstalosti. Určete tržní hodnotu jednotlivých součástí majetku ke dni úmrtí. Zkontrolujte všechny záznamy, včetně finančních výkazů, pojištění a daňových přiznání, abyste získali tržní hodnoty. Možná bude také potřeba získat posouzení ceny osobního majetku (tj. uměleckých předmětů, sbírek, starožitností atd.). Nezapomeňte do inventáře zahrnout i veškerý majetek nacházející se v cizině, jako jsou nemovitosti, cenné papíry nebo zahraniční obchodní zájmy. Abyste získali přesnou tržní hodnotu aktiv v cizině, možná bude potřeba se obrátit na odbornou pomoc."]
[]
[]
[null,"Všechna aktiva",{"$nulls":4},{"$f":"tblBankovníÚčty[[#Totals],[Zůstatek ]]+tblOsobníInvestice[[#Totals],[Tržní hodnota]]+tblObchodníZájmy[[#Totals],[Hodnota ]]+tblNemovitosti[[#Totals],[Tržní cena]]+tblPenzijníPlány[[#Totals],[Hodnota ]]+tblPojištění[[#Totals],[Peněžní hodnota ]]+tblHypotéky[[#Totals],[Dlužný zůstatek ]]+tblSvěřenectví[[#Totals],[Částka pro distribuci]]+tblOstatníMajetek[[#Totals],[Hodnota ]]","v":{"v":0,"d":"0.00 Kč"}}]
[]
[null,"Bankovní účty"]
[null,"Uveďte seznam všech bankovních účtů včetně hotovosti, cestovních šeků, peněžních poukázek a účtů v obchodních bankách, spořitelnách, záložnách atd. Zadejte všechna jména uvedená na účtu a přesnou částku skutečné peněžní hodnoty v době úmrtí."]
[null,"Finanční instituce ","Adresa","Telefon","Číslo účtu","Typ účtu","Zůstatek ","Poznámky"]
[]
[]
[]
[]
[]
[null,"Celkem",{"$nulls":4},{"$f":"SUBTOTAL(109,tblBankovníÚčty[[Zůstatek ]])","v":{"v":0,"d":"0.00 Kč"}}]
[]
[null,"Osobní investice"]
[null,"Zadejte seznam peněžních účtů, maržových účtů, spořicích účtů osvobozených od daně, registrovaných penzijních spořicích plánů (RRSP), registrovaných penzijních příjmových fondů (RRIF), uzamčených registrovaných penzijních příjmových fondů, uzamčených registrovaných penzijních spořicích plánů, fondů LIF, předepsaných penzijních příjmových fondů, registrovaných spořicích plánů na vzdělání, rent atd."]
[null,"Společnost","Adresa","Telefon","Číslo účtu","Příjemce","Tržní hodnota","Poznámky"]
[]
[]
[]
[]
[]
[null,"Celkem",{"$nulls":4},{"$f":"SUBTOTAL(109,tblOsobníInvestice[Tržní hodnota])","v":{"v":0,"d":"0.00 Kč"}}]
[]
[null,"Obchodní zájmy"]
[null,"Uveďte všechny obchodní zájmy, včetně výhradních vlastnictví, odborných praxí, společností, partnerství, společností a partnerství s ručením omezeným, společných podniků a dalších neveřejných obchodních subjektů. "]
[null,"Název firmy","Adresa","Telefon","Kontakt","Typ","Hodnota ","Poznámky"]
[]
[]
[]
[]
[]
[null,"Celkem",{"$nulls":4},{"$f":"SUBTOTAL(109,tblObchodníZájmy[[Hodnota ]])","v":{"v":0,"d":"0.00 Kč"}}]
[]
[null,"Nemovitosti"]
[null,"Uveďte všechny nemovitosti, které zesnulá osoba nebo žijící manžel(ka)/partner(ka) zesnulé osoby vlastní, je jejich spoluvlastníkem nebo je jakkoli zúčastněná, včetně nemovitostí zakoupených pro účely veřejné rekreační výstavby a vlastnických podílů. Získejte kopie těchto dokumentů. Zadejte popis nemovitosti s fyzickou adresou. Uveďte reálnou tržní hodnotu majetku na základě nejnovějšího posouzení daňového odhadce."]
[null,"Adresa","Vlastník","Telefon","Kontakt","Nákupní cena","Tržní cena","Poznámky"]
[]
[]
[]
[]
[]
[null,"Celkem",{"$nulls":3},{"$f":"SUBTOTAL(109,tblNemovitosti[Nákupní cena])","v":{"v":0,"d":"0.00 Kč"}},{"$f":"SUBTOTAL(109,tblNemovitosti[Tržní cena])","v":{"v":0,"d":"0.00 Kč"}}]
[]
[null,"Penzijní plány"]
[null,"Uveďte vymezené příspěvky, peněžní plány nebo vymezená spoření, DPSP nebo skupinové RRSP atd."]
[null,"Společnost","Telefon","Typ plánu","Příjemce","E-mail","Hodnota ","Poznámky"]
[]
[]
[]
[]
[]
[null,"Celkem",{"$nulls":4},{"$f":"SUBTOTAL(109,tblPenzijníPlány[[Hodnota ]])","v":{"v":0,"d":"0.00 Kč"}}]
[]
[null,"Pojištění"]
[null,"Uveďte svěřenecké fondy, životní pojistky s určenými oprávněnými osobami a investiční účty, které se převádějí v případě smrti, jako majetek, který není předmětem dědictví. Pokud se soud ohledně těchto prostředků dotáže, může ho vykonavatel snadno odkázat na seznam majetku, který není předmětem dědictví a vysvětlit jeho absenci v soupisu pozůstalosti."]
[null,"Vystavitel","Číslo pojistky","Telefon","Příjemce","Nominální hodnota ","Peněžní hodnota ","Poznámky"]
[]
[]
[]
[]
[]
[null,"Celkem",{"$nulls":3},{"$f":"SUBTOTAL(109,tblPojištění[[Nominální hodnota ]])","v":{"v":0,"d":"0.00 Kč"}},{"$f":"SUBTOTAL(109,tblPojištění[[Peněžní hodnota ]])","v":{"v":0,"d":"0.00 Kč"}}]
[]
[null,"Soukromé půjčky a hypotéky"]
[null,"Uveďte soukromé půjčky a hypotéky, jejichž poskytovatelem byla zesnulá osoba."]
[null,"Jméno vypůjčitele","Adresa","Telefon","Typ","Původní částka","Dlužný zůstatek ","Poznámky"]
[]
[]
[]
[]
[]
[null,"Celkem",{"$nulls":3},{"$f":"SUBTOTAL(109,tblHypotéky[Původní částka])","v":{"v":0,"d":"0.00 Kč"}},{"$f":"SUBTOTAL(109,tblHypotéky[[Dlužný zůstatek ]])","v":{"v":0,"d":"0.00 Kč"}}]
[]
[null,"Zájmy na jiném majetku a svěřenectvích"]
[null,"Uveďte seznam majetku registrovaného na jméno zesnulé osoby, který drží jménem jiných osob (např. majetek držený zesnulou osobou jako správcem nebo majetek držený na základě plné moci)."]
[null,"Název majetku nebo svěřenectví","Jméno vykonavatele/správce","Telefon","Adresa","E-mail","Částka pro distribuci","Poznámky"]
[]
[]
[]
[]
[]
[null,"Celkem",{"$nulls":4},{"$f":"SUBTOTAL(109,tblSvěřenectví[Částka pro distribuci])","v":{"v":0,"d":"0.00 Kč"}}]
[]
[null,"Osobní věci a další majetek"]
[null,"Uveďte všechny osobní věci, například auta, šperky, umělecké předměty, starožitnosti, nábytek. Zahrňte položky, které mohou být uložené v bezpečnostní schránce nebo v úschově."]
[null,"Popis položky","Místo","Telefon","Kontakt","Příjemce","Hodnota ","Poznámky"]
[]
[]
[]
[]
[]
[null,"Celkem",{"$nulls":4},{"$f":"SUBTOTAL(109,tblOstatníMajetek[[Hodnota ]])","v":{"v":0,"d":"0.00 Kč"}}]

{"sheet":"Závazky z pozůstalosti","index":2,"n_rows":58,"n_cols":8,"rows_kept":58,"merged":[[0,1,0,7],[1,1,5,7],[6,1,6,7],[10,1,10,7],[20,1,20,7],[30,1,30,7],[40,1,40,7],[50,1,50,7]]}
[]
[null,"Závazky z pozůstalosti"]
[]
[]
[]
[]
[null,"Tento list slouží k zaznamenání podrobností o závazcích z pozůstalosti, a to jak tuzemských, tak zahraničních. Bude potřeba provést ocenění každého závazku k datu úmrtí."]
[]
[null,"Všechna aktiva",{"$nulls":4},{"$f":"SUM(G18,G28,G38,G48,G58)","v":{"v":0,"d":"0.00 Kč"}}]
[]
[null,"Hypotéky"]
[null,"Finanční instituce ","Adresa","Telefon","Vlastník","Číslo účtu","Zůstatek ","Poznámky"]
[]
[]
[]
[]
[]
[null,"Celkem",{"$nulls":4},{"$f":"SUBTOTAL(109,tblBankovníÚčty2[[Zůstatek ]])","v":{"v":0,"d":"0.00 Kč"}}]
[]
[]
[null,"Osobní půjčky a úvěrové linky"]
[null,"Finanční instituce","Adresa","Telefon"," Číslo účtu","Typ","Zůstatek ","Poznámky"]
[]
[]
[]
[]
[]
[null,"Celkem",{"$nulls":4},{"$f":"SUBTOTAL(109,tblOsobníInvestice3[[Zůstatek ]])","v":{"v":0,"d":"0.00 Kč"}}]
[]
[]
[null,"Obchodní zájmy"]
[null,"Název firmy","Adresa"," Telefon"," Kontakt","Typ","Hodnota ","Poznámky"]
[]
[]
[]
[]
[]
[null,"Celkem",{"$nulls":4},{"$f":"SUBTOTAL(109,tblObchodníZájmy4[[Hodnota ]])","v":{"v":0,"d":"0.00 Kč"}}]
[]
[]
[null,"Kreditní karty"]
[null,"Společnost kreditní karty","Adresa společnosti","Telefon","Číslo karty","Konec platnosti ","Zůstatek ","Poznámky"]
[]
[]
[]
[]
[]
[null,"Celkem",{"$nulls":4},{"$f":"SUBTOTAL(109,tblNemovitosti5[[Zůstatek ]])","v":{"v":0,"d":"0.00 Kč"}}]
[]
[]
[null,"Jiné závazky"]
[null,"Popis položky","Místo","Telefon","Kontakt","Příjemce","Hodnota ","Poznámky"]
[]
[]
[]
[]
[]
[null,"Celkem",{"$nulls":4},{"$f":"SUBTOTAL(109,tblPenzijníPlány6[[Hodnota ]])","v":{"v":0,"d":"0.00 Kč"}}]